fUST/lending_fUST_20240924
["ID","MTS","AMOUNT","RATE_DAILY","PERIOD"]
[338994371,1727110151153,-1152.07330286,0.0003,2]
[338994372,1727110154136,-12748.16895338,0.0003,2]
[338994373,1727110164121,-12785.37289978,0.0003,2]
[338994374,1727110166095,-1898.95828234,0.0003,2]
[338994502,1727110238595,-300.0,0.00029999,2]
[338994504,1727110238606,-3383.71358342,0.0003,2]
[338994511,1727110238704,-15708.7962691,0.0003,2]
[338994512,1727110238714,-500.0,0.0003,5]
[338994513,1727110238723,-240.0,0.00030179,2]
[338994514,1727110238733,-206.29869456,0.00030548,5]
[338994516,1727110238743,-1461.00385174,0.00031614,2]
[338994518,1727110238754,-500.0,0.00031999,2]
[338994520,1727110238764,-166.53822105,0.00032,10]
[338994522,1727110238773,-420.0,0.00032332,2]
[338994523,1727110238782,-5894.3553191,0.0003273,2]
[338994524,1727110238792,-182.1633923,0.00032766,2]
[338994525,1727110238802,-220.03397909,0.00032776,2]
[338994526,1727110238814,-647.75797903,0.00032776,2]
[338994527,1727110238823,-500.0,0.00032821,2]
[338994528,1727110238832,-154.77,0.00032846,3]
[338994529,1727110238841,-773.87,0.00032846,3]
[338994530,1727110238851,-302.09055928,0.00032855,2]
[338994531,1727110238860,-183.03751038,0.00032855,2]
[338994532,1727110238870,-500.0,0.00032855,2]
[338994533,1727110238879,-251.91761395,0.00032855,2]
[338994535,1727110238888,-585.79603465,0.00032855,2]
[338994537,1727110238898,-500.0,0.00032855,2]
[338994539,1727110238907,-24547.9627585,0.00032856,4]
[338994541,1727110238917,-51371.8580947,0.00032856,5]
[338994543,1727110238927,-159.70308505,0.00032866,30]
[338994545,1727110238936,-196383.702068,0.00032866,4]
[338994547,1727110238946,-84687.07376606,0.00032866,5]
[338994569,1727110239148,-70954.93915088,0.00032866,5]
[338994576,1727110239201,3934.52,0.00025,30]
[338995029,1727110243449,-4840.77038241,0.00032866,5]
[338995043,1727110243582,-99.89147015,0.00032866,5]
[338995312,1727110246440,-47.4815885,0.00032866,5]
[338996302,1727110256476,3934.51,0.00029,2]
[338999120,1727110379752,3230.46822214,0.00029,15]
[338999122,1727110484235,293.870734,0.00027397,2]
[338999123,1727110560486,176.859069,0.00027021,2]
[338999124,1727110594552,2400.0,0.00028,2]
[338999128,1727111035557,169.501343,0.00027943,2]
[338999129,1727111145175,-4654.66030909,0.00028149,2]
[338999130,1727111145204,-2039.19059011,0.00028197,2]
[338999131,1727111148352,170.564263,0.00027743,2]
[338999132,1727111150099,-267.75410547,0.00028197,2]
[338999133,1727111218969,2603.52,0.00028,2]
[338999134,1727111226104,-300.0,0.00028196,2]
[338999135,1727111226126,-300.0,0.00028196,2]
[338999136,1727111226147,-1017.00815309,0.00028197,2]
[338999137,1727111230091,-952.35707118,0.00028197,2]
[338999138,1727111238104,-5328.20917564,0.00028197,2]
[338999139,1727111349490,-300.0,0.00028196,2]
[338999140,1727111349512,-300.0,0.00028196,2]
[338999141,1727111349533,-15295.48090451,0.00028197,2]
[338999142,1727111349553,-250.0,0.00028239,2]
[338999143,1727111349573,-176.452734,0.00028249,2]
[338999144,1727111349593,-228.2883128,0.00028263,2]
[338999145,1727111349626,-1218.5214767,0.0002844,2]
[338999146,1727111349646,-202.0361392,0.00028503,2]
[338999147,1727111349667,-250.0,0.00028597,2]
[338999148,1727111349687,-214.17952546,0.00028676,2]
[338999149,1727111357127,-35.82047454,0.00028676,2]
[338999150,1727111357150,-250.0,0.00028754,2]
[338999151,1727111357171,-250.0,0.00028833,2]
[338999152,1727111357192,-250.0,0.00028911,2]
[338999153,1727111357214,-176.452734,0.00028934,2]
[338999154,1727111357235,-319.0204031,0.00028935,2]
[338999155,1727111357257,-250.0,0.0002899,2]
[338999156,1727111357278,-250.0,0.00029068,2]
[338999157,1727111357299,-250.0,0.00029147,2]
[338999158,1727111357319,-250.0,0.00029225,2]
[338999159,1727111357340,-250.0,0.00029303,2]
[338999160,1727111357361,-250.0,0.00029382,2]
[338999161,1727111357382,-250.0,0.0002946,2]
[338999162,1727111357403,-250.0,0.00029539,2]
[338999163,1727111357426,-250.0,0.00029617,2]
[338999164,1727111357447,-176.452734,0.00029619,2]
[338999165,1727111357468,-250.0,0.00029696,2]
[338999166,1727111357490,-250.0,0.00029774,2]
[338999167,1727111357513,-139.10568423,0.00029851,2]
[338999168,1727111360089,-360.89431577,0.00029851,2]
[338999169,1727111360111,-383.40461968,0.00029851,2]
[338999170,1727111360131,-500.0,0.00029851,2]
[338999171,1727111360153,-500.0,0.00029851,2]
[338999172,1727111360173,-180.54195601,0.00029851,2]
[338999173,1727111366112,-238.41185327,0.00029851,2]
[338999174,1727111366135,-500.0,0.00029851,2]
[338999175,1727111366157,-500.0,0.00029851,2]
[338999176,1727111366179,-250.0,0.00029852,2]
[338999177,1727111366200,-166.459,0.00029915,24]
[338999178,1727111366226,-250.0,0.00029931,2]
[338999179,1727111366248,-151.0,0.0003,120]
[338999180,1727111366269,-151.0,0.0003,120]
[338999181,1727111366292,-250.0,0.00030009,2]
[338999182,1727111366314,-250.0,0.00030088,2]
[338999183,1727111366334,-420.0,0.00030446,2]
[338999184,1727111366356,-420.0,0.00031016,2]
[338999185,1727111366377,-1000.0,0.00032,120]
[338999186,1727111366398,-5894.3553192,0.00032062,2]
[338999187,1727111366419,-2144.69569925,0.00032396,2]
[338999188,1727111379065,12733.41166586,0.0003,2]
[338999189,1727111379089,8742.20702237,0.0003,2]
[338999190,1727111392658,10085.02987523,0.0002,2]
[338999191,1727111392685,19185.684591,0.0002,2]
[338999192,1727111392705,12821.69534654,0.0002,2]
[338999193,1727111392729,25000.0,0.0002,2]
[338999194,1727111392754,25000.0,0.0002,2]
[338999195,1727111392782,195562.870395,0.0002,2]
[338999346,1727111438812,-295.600846,0.00027397,2]
[338999348,1727111438821,-3749.65961995,0.00032396,2]
[338999350,1727111438831,-400.0,0.00032499,2]
[338999352,1727111438840,-263.0,0.00032499,2]
[338999354,1727111438850,-2803.19364582,0.000325,25]
[338999363,1727111438957,-1255.91066285,0.000325,25]
[338999377,1727111440604,-562.76647442,0.000325,25]
[338999409,1727111443638,-378.12921691,0.000325,25]
[338999410,1727111443649,-69.60524655,0.000327,2]
[338999419,1727111446676,-108.73236484,0.000327,2]
[338999420,1727111446685,-151.0,0.0003274,120]
[338999421,1727111446695,-781.01276229,0.00032776,2]
[338999422,1727111446704,-222.85487287,0.00032789,2]
[338999442,1727111549487,500.0,0.0002501,2]
[338999444,1727112149645,10000.0,0.00025,30]
[338999445,1727112162796,10000.0,0.0002501,2]
[338999446,1727112177086,1024.0,0.00025,10]
[338999448,1727112335139,-262.27593732,0.00025463,2]
[338999451,1727112358101,-360.51871021,0.00025463,2]
[338999452,1727112358123,-190.681245,0.00026702,2]
[338999453,1727112358144,-206.20628,0.000273,120]
[338999454,1727112358164,-168.271222,0.00027383,2]
[338999455,1727112358185,-313.650368,0.00027397,2]
[338999456,1727112358206,-300.0,0.00027426,2]
[338999457,1727112358227,-300.0,0.00027426,2]
[338999458,1727112358251,-2650.8848234,0.00027427,2]
[338999460,1727112430104,-159.68078769,0.00026117,2]
[338999461,1727112434099,-90.31921231,0.00026117,2]
[338999462,1727112434122,-250.0,0.00026643,2]
[338999463,1727112434144,-250.0,0.00026716,2]
[338999464,1727112434167,-250.0,0.00026789,2]
[338999465,1727112434191,-250.0,0.00026862,2]
[338999466,1727112434214,-250.0,0.00026935,2]
[338999467,1727112434236,-250.0,0.00027008,2]
[338999468,1727112434257,-250.0,0.00027081,2]
[338999469,1727112434279,-250.0,0.00027154,2]
[338999470,1727112434301,-250.0,0.00027227,2]
[338999471,1727112434324,-250.0,0.000273,2]
[338999472,1727112434346,-250.0,0.00027373,2]
[338999473,1727112434382,-300.0,0.00027426,2]
[338999474,1727112434405,-300.0,0.00027426,2]
[338999475,1727112434429,-3029.13220448,0.00027427,2]
[338999476,1727112440150,-1633.55848832,0.00027427,2]
[338999477,1727112442116,-181.73167944,0.00027427,2]
[338999478,1727112449101,-598.49300679,0.00027427,2]
[338999479,1727112453104,-219.70546728,0.00027427,2]
[338999482,1727112553116,-3000.0,0.0002638,2]
[338999483,1727112553141,-603.440437,0.00026552,2]
[338999484,1727112553162,-300.0,0.00026799,2]
[338999485,1727112553184,-300.0,0.00026799,2]
[338999486,1727112553205,-500.0,0.000268,2]
[338999487,1727112553227,-500.0,0.000268,2]
[338999488,1727112553248,-500.0,0.000268,2]
[338999489,1727112553268,-500.0,0.000268,2]
[338999490,1727112553289,-500.0,0.000268,2]
[338999491,1727112553309,-500.0,0.000268,2]
[338999492,1727112553329,-500.0,0.000268,2]
[338999493,1727112553349,-500.0,0.000268,2]
[338999494,1727112553370,-500.0,0.000268,2]
[338999495,1727112553390,-500.0,0.000268,2]
[338999496,1727112553410,-500.0,0.000268,2]
[338999497,1727112553430,-369.45905468,0.000268,2]
[338999498,1727112553451,-3553.80427661,0.00027427,2]
[338999499,1727112558463,-12645.82204802,0.00027427,2]
[338999500,1727112563090,-386.86800566,0.00027427,2]
[338999501,1727112563111,-250.0,0.00027446,2]
[338999502,1727112563132,-250.0,0.00027519,2]
[338999503,1727112563153,-250.0,0.00027593,2]
[338999504,1727112563174,-250.0,0.00027666,2]
[338999505,1727112563195,-250.0,0.00027739,2]
[338999506,1727112563215,-168.2093062,0.00027759,2]
[338999507,1727112563239,-535.48533967,0.00027761,2]
[338999508,1727112563261,-500.0,0.00027761,2]
[338999509,1727112563282,-500.0,0.00027761,2]
[338999510,1727112563303,-500.0,0.00027761,2]
[338999511,1727112563324,-500.0,0.00027761,2]
[338999512,1727112563346,-500.0,0.00027761,2]
[338999513,1727112563367,-500.0,0.00027761,2]
[338999514,1727112563389,-500.0,0.00027761,2]
[338999515,1727112563411,-500.0,0.00027761,2]
[338999516,1727112563433,-457.28932462,0.00027761,2]
[338999517,1727112563456,-500.0,0.00027761,2]
[338999518,1727112563480,-500.0,0.00027761,2]
[338999519,1727112563500,-5006.1225607,0.00027762,2]
[338999520,1727112563526,-176.452733,0.00027784,2]
[338999521,1727112563548,-1369.99303869,0.00027785,2]
[338999522,1727112563572,-250.0,0.00027812,2]
[338999523,1727112563596,-250.0,0.00027885,2]
[338999524,1727112563617,-3644.565235,0.00027893,2]
[338999525,1727112563637,-250.0,0.00027958,2]
[338999526,1727112563658,-250.0,0.00028031,2]
[338999527,1727112563677,-618.3431383,0.00028035,61]
[338999528,1727112563699,-176.452733,0.00028469,2]
[338999529,1727112573112,-190.42642642,0.000285,2]
[338999530,1727112573145,-420.0,0.00028979,2]
[338999531,1727112573176,-176.452733,0.00029154,2]
[338999532,1727112573209,-406.0,0.00029479,2]
[338999533,1727112573243,-164.958,0.00029622,23]
[338999534,1727112573276,-461.39332582,0.00029801,2]
[338999536,1727112621401,297.967849,0.00027397,2]
[338999735,1727112637985,-908.59971286,0.00029801,2]
[338999737,1727112637996,-151.0,0.0003,120]
[338999739,1727112638005,-151.0,0.0003,120]
[338999741,1727112638015,-4000.0,0.0003,30]
[338999743,1727112638024,-168.270566,0.00030261,2]
[338999745,1727112638035,-707.0506,0.00030351,30]
[338999747,1727112638045,-340.0,0.00031327,2]
[338999748,1727112638054,-823.7314972,0.00031328,2]
[338999750,1727112638064,-153.0,0.00031342,2]
[338999751,1727112638073,-417.954978,0.00031342,2]
[338999752,1727112638083,-153.0,0.00031342,2]
[338999753,1727112638092,-153.0,0.00031342,2]
[338999754,1727112638102,-153.0,0.00031342,2]
[338999755,1727112638112,-153.0,0.00031342,2]
[338999756,1727112638122,-153.0,0.00031378,2]
[338999757,1727112638131,-411.8657486,0.00031378,2]
[338999758,1727112638141,-411.8657486,0.00031378,2]
[338999759,1727112638150,-411.8657486,0.00031378,2]
[338999760,1727112638160,-153.0,0.00031478,2]
[338999761,1727112638170,-500.0,0.00031506,30]
[338999762,1727112638179,-500.0,0.00031506,30]
[338999763,1727112638188,-500.0,0.00031506,30]
[338999764,1727112638198,-500.0,0.00031506,30]
[338999765,1727112638207,-500.0,0.00031506,30]
[338999766,1727112638217,-500.0,0.00031506,30]
[338999767,1727112638226,-512.28831638,0.00031506,30]
[338999768,1727112638236,-1369.99303868,0.00031818,2]
[338999769,1727112638245,-155.7,0.00032037,6]
[338999770,1727112638254,-4465.13659208,0.00032088,2]
[338999771,1727112638263,-153.0,0.00032164,2]
[338999772,1727112638272,-153.0,0.00032164,2]
[338999773,1727112638287,-161.32123746,0.0003268,2]
[338999774,1727112638297,-150.234803,0.000327,2]
[338999775,1727112638305,-151.0,0.0003274,120]
[338999776,1727112638315,-1000.0,0.0003276,120]
[338999777,1727112638324,-767.687284,0.00032766,2]
[338999778,1727112638333,-500.0,0.00032773,5]
[338999779,1727112638342,-500.0,0.00032773,5]
[338999780,1727112638351,-500.0,0.00032773,5]
[338999781,1727112638360,-606.36548051,0.00032775,2]
[338999782,1727112638368,-2347.64492461,0.00032776,120]
[338999783,1727112638378,-344.46700304,0.00032779,2]
[338999784,1727112638387,-500.0,0.00032779,2]
[338999785,1727112638396,-183.03751038,0.00032779,2]
[338999786,1727112638406,-401.13540659,0.00032779,2]
[338999787,1727112638415,-561.90088999,0.00032779,2]
[338999788,1727112638424,-500.0,0.00032779,2]
[338999789,1727112638433,-500.0,0.00032779,2]
[338999790,1727112638442,-227.97,0.0003278,3]
[338999791,1727112638451,-27997.9157732,0.0003278,4]
[338999792,1727112638460,-40771.7573721,0.0003278,4]
[338999793,1727112638470,-27997.9157732,0.0003279,4]
[338999794,1727112638479,-40771.7573721,0.0003279,4]
[338999795,1727112638488,-500.0,0.00032799,2]
[338999796,1727112638498,-30000.0,0.000328,2]
[338999797,1727112638507,-35739.08973383,0.000328,2]
[338999798,1727112638515,-150.112233,0.000328,6]
[338999799,1727112638524,-150.112233,0.000328,7]
[338999800,1727112638538,-150.112233,0.000328,10]
[338999801,1727112638550,-150.112233,0.000328,9]
[338999802,1727112638559,-150.112233,0.000328,7]
[338999803,1727112638568,-150.112233,0.000328,5]
[338999804,1727112638577,-150.112233,0.000328,10]
[338999805,1727112638587,-150.112233,0.000328,8]
[338999806,1727112638596,-150.112233,0.000328,9]
[338999807,1727112638605,-159.70308505,0.000328,30]
[338999808,1727112638615,-155.7,0.00032823,7]
[338999809,1727112638624,-27997.9157732,0.00032835,4]
[338999810,1727112638633,-40771.7573721,0.00032835,5]
[338999811,1727112638642,-586.66743907,0.00032845,2]
[338999812,1727112638651,-27997.9157732,0.00032846,4]
[338999813,1727112638660,-40771.7573721,0.00032846,5]
[338999814,1727112638669,-27997.9157732,0.00032846,4]
[338999815,1727112638677,-40771.7573721,0.00032846,5]
[338999816,1727112638686,-111991.663093,0.00032856,4]
[338999817,1727112638695,-122315.272116,0.00032856,5]
[338999818,1727112638705,-364.338348,0.00032856,7]
[338999819,1727112638714,-151.0,0.00032856,7]
[338999820,1727112638723,-151.0,0.00032856,7]
[338999821,1727112638732,-364.338348,0.00032856,7]
[338999822,1727112638741,-436.551452,0.00032856,7]
[338999823,1727112638750,-436.551452,0.00032856,7]
[338999824,1727112638759,-166.117388,0.00032856,7]
[338999825,1727112638768,-166.117388,0.00032856,7]
[338999826,1727112638778,-1199.972098,0.00032856,7]
[338999827,1727112638787,-1199.972098,0.00032856,7]
[338999828,1727112638796,-151.0,0.00032856,7]
[338999829,1727112638805,-151.0,0.00032856,7]
[338999830,1727112638814,-1179.227651,0.00032856,7]
[338999831,1727112638823,-1179.227651,0.00032856,7]
[338999832,1727112638832,-210.780347,0.00032856,7]
[338999833,1727112638842,-210.780347,0.00032856,7]
[338999834,1727112638851,-4890.245738,0.00032856,7]
[338999835,1727112638861,-4890.245738,0.00032856,7]
[338999836,1727112638870,-151.0,0.00032856,7]
[338999837,1727112638879,-662.244228,0.00032856,7]
[338999838,1727112638888,-301.7847,0.00032856,7]
[338999839,1727112638897,-662.244228,0.00032856,7]
[338999840,1727112639018,-301.7847,0.00032856,7]
[338999841,1727112639029,-3016.559643,0.00032856,7]
[338999842,1727112639038,-2876.375575,0.00032856,7]
[338999843,1727112639047,-3016.559643,0.00032856,7]
[338999844,1727112639057,-2876.375575,0.00032856,7]
[338999845,1727112639066,-412.652541,0.00032856,7]
[338999846,1727112639074,-691.145062,0.00032856,7]
[338999847,1727112639084,-412.652541,0.00032856,7]
[338999848,1727112639093,-222.2193751,0.00032856,7]
[338999849,1727112639128,-20.19240883,0.00032856,7]
[338999850,1727112639219,-448.73327807,0.00032856,7]
[338999851,1727112639228,-273.561353,0.00032856,7]
[338999852,1727112639238,-151.0,0.00032856,7]
[338999853,1727112639247,-273.561353,0.00032856,7]
[338999854,1727112639256,-151.0,0.00032856,7]
[338999855,1727112639265,-151.0,0.00032856,7]
[338999857,1727112639274,-88.52819969,0.00032856,7]
[338999940,1727112643160,-88.73267547,0.0003278,3]
[338999941,1727112643427,-29.14177081,0.0003278,3]
[338999975,1727112645801,-153.0,0.00031342,2]
[338999977,1727112645812,-72.10555372,0.0003278,3]
[338999979,1727112645821,-406.06444628,0.00032856,7]
[339000004,1727112886003,507.79,0.00030841,2]
[339000005,1727112901694,2092.21,0.00029459,2]
[339000009,1727113626132,-299.736123,0.00027397,2]
[339000010,1727113626154,-300.0,0.00028262,2]
[339000011,1727113626175,-300.0,0.00028262,2]
[339000012,1727113626196,-1285.95956978,0.00028263,2]
[339000013,1727113627120,-248.23827965,0.00028263,2]
[339000014,1727113631450,-1408.53684439,0.00028263,2]
[339000015,1727113651185,-301.720218,0.00027501,2]
[339000016,1727113651213,-814.1778847,0.00027651,2]
[339000017,1727113651250,-5185.00615473,0.00028263,2]
[339000018,1727113745116,-250.0,0.0002821,2]
[339000019,1727113745138,-1587.91656468,0.00028263,2]
[339000020,1727113746137,-2874.89258217,0.00028263,2]
[339000021,1727113752241,-11218.940554,0.00028263,2]
[339000022,1727113756104,-1090.5094506,0.00028263,2]
[339000023,1727113756127,-419.04039131,0.00028272,2]
[339000024,1727113756147,-432.458934,0.00028372,2]
[339000025,1727113756168,-2951.71051655,0.00028406,2]
[339000026,1727113771152,-14.44894995,0.00028406,2]
[339000027,1727113771176,-250.0,0.0002861,2]
[339000028,1727113771198,-250.0,0.00028688,2]
[339000029,1727113771220,-250.0,0.00028767,2]
[339000030,1727113771243,-250.0,0.00028845,2]
[339000031,1727113771272,-250.0,0.00028924,2]
[339000032,1727113771294,-250.0,0.00029002,2]
[339000033,1727113771315,-432.458934,0.00029057,2]
[339000034,1727113771337,-250.0,0.00029081,2]
[339000035,1727113771359,-129.6899527,0.00029159,2]
[339000076,1727113831970,-120.3100473,0.00029159,2]
[339000078,1727113831979,-250.0,0.00029238,2]
[339000080,1727113831989,-250.0,0.00029316,2]
[339000082,1727113831998,-250.0,0.00029395,2]
[339000083,1727113832007,-250.0,0.00029473,2]
[339000085,1727113832016,-250.0,0.00029552,2]
[339000087,1727113832025,-85.4098137,0.0002963,2]
[339000138,1727113838287,-164.5901863,0.0002963,2]
[339000139,1727113838296,-250.0,0.00029708,2]
[339000140,1727113838306,-432.458934,0.00029742,2]
[339000141,1727113838316,-250.0,0.00029787,2]
[339000142,1727113838326,-209.52019565,0.00029843,2]
[339000143,1727113838335,-250.0,0.00029865,2]
[339000144,1727113838345,-250.0,0.00029944,2]
[339000145,1727113838355,-151.0,0.0003,120]
[339000146,1727113838366,-250.0,0.00030022,2]
[339000147,1727113838375,-171.653,0.0003006,25]
[339000148,1727113838385,-250.0,0.00030101,2]
[339000149,1727113838394,-500.0,0.00031999,2]
[339000150,1727113838403,-500.0,0.00031999,2]
[339000151,1727113838413,-500.0,0.00031999,2]
[339000152,1727113838424,-500.0,0.00031999,2]
[339000153,1727113838434,-195.72893246,0.00031999,2]
[339000154,1727113838443,-500.0,0.00031999,2]
[339000155,1727113838452,-500.0,0.00031999,2]
[339000156,1727113838462,-500.0,0.00031999,2]
[339000157,1727113838472,-19284.0,0.00032,120]
[339000158,1727113838481,-856.24564921,0.00032228,2]
[339000159,1727113838492,-155.7,0.00032328,7]
[339000160,1727113838501,-1455.719861,0.0003244,2]
[339000161,1727113838511,-1000.0,0.00032718,2]
[339000162,1727113838520,-161.32123746,0.00032736,2]
[339000164,1727113838530,-151.0,0.0003274,120]
[339000165,1727113838540,-1000.0,0.00032745,2]
[339000166,1727113838549,-1113.81529106,0.00032745,2]
[339000167,1727113838559,-478.79470768,0.00032757,2]
[339000168,1727113838569,-767.687284,0.00032766,2]
[339000169,1727113838583,-2347.64492461,0.00032776,120]
[339000170,1727113838593,-500.0,0.0003278,2]
[339000171,1727113838604,-1000.0,0.00032794,2]
[339000172,1727113838614,-150.234803,0.000328,2]
[339000173,1727113838623,-848.42,0.00032825,3]
[339000174,1727113838634,-344.46700304,0.00032834,2]
[339000175,1727113838644,-183.03751038,0.00032834,2]
[339000176,1727113838655,-401.13540659,0.00032834,2]
[339000177,1727113838668,-500.0,0.00032834,2]
[339000178,1727113838681,-500.0,0.00032834,2]
[339000179,1727113838691,-500.0,0.00032834,2]
[339000180,1727113838700,-561.90088999,0.00032834,2]
[339000181,1727113838710,-27997.9157732,0.00032835,4]
[339000182,1727113838719,-57650.8127622,0.00032835,5]
[339000183,1727113838729,-83993.7473196,0.00032835,4]
[339000184,1727113838739,-172952.438287,0.00032835,5]
[339000185,1727113838749,-159.70308505,0.00032836,30]
[339000186,1727113838758,-151.0,0.00032845,7]
[339000187,1727113838768,-1199.972098,0.00032845,7]
[339000188,1727113838777,-1199.972098,0.00032845,7]
[339000189,1727113838787,-2874.608272,0.00032845,7]
[339000190,1727113838797,-662.244228,0.00032845,7]
[339000191,1727113838806,-2874.608272,0.00032845,7]
[339000192,1727113838816,-662.244228,0.00032845,7]
[339000193,1727113838826,-621.038581,0.00032845,2]
[339000194,1727113838836,-621.038581,0.00032845,2]
[339000195,1727113838845,-224.291572,0.00032845,7]
[339000196,1727113839007,-224.291572,0.00032845,7]
[339000197,1727113839017,-27997.9157732,0.00032846,4]
[339000198,1727113839026,-57650.8127622,0.00032846,5]
[339000199,1727113839035,-151.0,0.00032846,7]
[339000200,1727113839045,-151.0,0.00032846,7]
[339000201,1727113839054,-27997.9157732,0.00032846,4]
[339000202,1727113839064,-57650.8127622,0.00032846,5]
[339000203,1727113839074,-410.17205345,0.00032854,2]
[339000204,1727113839083,-12072.69584141,0.00032854,2]
[339000205,1727113839093,-586.66743907,0.00032855,2]
[339000206,1727113839102,-55995.8315464,0.00032856,4]
[339000207,1727113839112,-340.729212,0.00032856,7]
[339000208,1727113839121,-340.729212,0.00032856,7]
[339000209,1727113839130,-340.729212,0.00032856,7]
[339000210,1727113839140,-340.729212,0.00032856,7]
[339000211,1727113839153,-386.891345,0.00032856,7]
[339000212,1727113839164,-386.891345,0.00032856,7]
[339000213,1727113839180,-151.0,0.00032856,7]
[339000214,1727113839190,-519.20774,0.00032856,7]
[339000215,1727113839200,-519.20774,0.00032856,7]
[339000216,1727113839209,-2368.7272,0.00032856,7]
[339000217,1727113839218,-2368.7272,0.00032856,7]
[339000218,1727113839227,-151.0,0.00032856,2]
[339000219,1727113839237,-151.0,0.00032856,7]
[339000220,1727113839246,-151.0,0.00032856,7]
[339000221,1727113839256,-152.816515,0.00032856,7]
[339000222,1727113839265,-210.780347,0.00032856,7]
[339000223,1727113839275,-210.780347,0.00032856,7]
[339000224,1727113839288,-181.503051,0.00032856,7]
[339000225,1727113839298,-181.503051,0.00032856,7]
[339000226,1727113839307,-151.0,0.00032856,7]
[339000227,1727113839316,-1199.972098,0.00032856,7]
[339000228,1727113839325,-1199.972098,0.00032856,7]
[339000229,1727113839335,-477.637725,0.00032856,7]
[339000230,1727113839344,-477.637725,0.00032856,7]
[339000231,1727113839354,-2874.608272,0.00032856,7]
[339000232,1727113839364,-662.244228,0.00032856,7]
[339000233,1727113839373,-2874.608272,0.00032856,7]
[339000234,1727113839383,-662.244228,0.00032856,7]
[339000235,1727113839392,-621.038581,0.00032856,2]
[339000236,1727113839401,-621.038581,0.00032856,2]
[339000237,1727113839411,-151.0,0.00032856,7]
[339000238,1727113839422,-436.551452,0.00032856,7]
[339000239,1727113839432,-436.551452,0.00032856,7]
[339000240,1727113839442,-667.698778,0.00032856,7]
[339000241,1727113839451,-667.698778,0.00032856,7]
[339000242,1727113839461,-1879.310267,0.00032856,7]
[339000243,1727113839471,-1879.310267,0.00032856,7]
[339000244,1727113839480,-585.859969,0.00032856,7]
[339000245,1727113839490,-585.859969,0.00032856,7]
[339000246,1727113839500,-151.0,0.00032856,7]
[339000247,1727113839510,-664.349433,0.00032856,7]
[339000248,1727113839519,-224.291572,0.00032856,7]
[339000249,1727113839528,-151.0,0.00032856,7]
[339000250,1727113839538,-664.349433,0.00032856,7]
[339000251,1727113839547,-224.291572,0.00032856,7]
[339000252,1727113839557,-238.683424,0.00032856,7]
[339000253,1727113839566,-238.683424,0.00032856,7]
[339000254,1727113839575,-3016.559643,0.00032856,7]
[339000255,1727113839585,-151.0,0.00032856,7]
[339000257,1727113839594,-3016.559643,0.00032856,7]
[339000258,1727113839603,-504.308122,0.00032856,7]
[339000259,1727113839612,-267.112345,0.00032856,7]
[339000260,1727113839622,-151.0,0.00032856,7]
[339000261,1727113839631,-151.0,0.00032856,7]
[339000263,1727113839640,-504.308122,0.00032856,7]
[339000264,1727113839650,-267.112345,0.00032856,7]
[339000266,1727113839660,-152.050946,0.00032856,7]
[339000267,1727113839671,-19954.8542876,0.00032866,4]
[339000297,1727113846125,-196.31,0.00032825,3]
[339000298,1727113846134,-1645.39612105,0.00032854,2]
[339000299,1727113846263,-242.85507697,0.00032854,2]
[339000300,1727113919636,159.59,0.0002501,2]
[339000306,1727114825706,12591.42728757,0.0002474,2]
[339000307,1727114835151,-161.3555445,0.00026534,2]
[339000308,1727114835172,-293.082651,0.00027397,2]
[339000309,1727114835193,-300.0,0.00027743,2]